bitfinex/quotes_BTCUSD_20241011
["timestamp","ask_amount","ask_price","bid_price","bid_amount"]
[1728676159682,0.93248103,63014.0,63013.0,0.00164]
[1728676159885,0.93265198,63014.0,63013.0,0.00164]
[1728676160099,0.92365198,63014.0,63013.0,0.00164]
[1728676160308,0.93765198,63014.0,63013.0,0.00164]
[1728676160712,1.06632141,63014.0,63013.0,0.00164]
[1728676161133,0.76769286,63014.0,63013.0,0.00164]
[1728676161977,0.9373571,63014.0,63013.0,0.00164]
[1728676162656,0.76769286,63014.0,63013.0,0.00164]
[1728676163577,0.93684936,63014.0,63013.0,0.00164]
[1728676164226,0.78499551,63014.0,63013.0,0.00164]
[1728676164438,0.92762877,63014.0,63013.0,0.00164]
[1728676164643,0.78499551,63014.0,63013.0,0.00164]
[1728676164883,0.92762877,63014.0,63013.0,0.00164]
[1728676165090,0.61583901,63014.0,63013.0,0.00164]
[1728676165297,0.78494349,63014.0,63013.0,0.00164]
[1728676166364,0.61583901,63014.0,63013.0,0.00164]
[1728676166585,0.70668389,63014.0,63013.0,0.00164]
[1728676166997,0.61583901,63014.0,63013.0,0.00164]
[1728676167203,0.9042557,63014.0,63013.0,0.00164]
[1728676167429,0.78541464,63014.0,63013.0,0.00164]
[1728676167843,0.90426051,63014.0,63013.0,0.00164]
[1728676168268,0.78541464,63014.0,63013.0,0.00164]
[1728676169658,0.61583901,63014.0,63013.0,0.00164]
[1728676170446,0.19004501,63014.0,63013.0,0.00164]
[1728676170676,0.19004501,63014.0,63013.0,0.03235929]
[1728676170873,0.19004501,63014.0,63013.0,0.00164]
[1728676171484,0.17604501,63014.0,63013.0,0.00164]
[1728676171700,0.19004501,63014.0,63013.0,0.00164]
[1728676172104,0.16204501,63014.0,63013.0,0.00164]
[1728676172554,0.17604501,63014.0,63013.0,0.00164]
[1728676173009,0.16204501,63014.0,63013.0,0.00164]
[1728676173228,0.16504501,63014.0,63013.0,0.00164]
[1728676173841,0.17004501,63014.0,63013.0,0.00164]
[1728676176306,0.32873901,63014.0,63013.0,0.00164]
[1728676176526,0.40963901,63014.0,63013.0,0.00164]
[1728676176734,0.32873901,63014.0,63013.0,0.00164]
[1728676180053,0.32841887,63014.0,63013.0,0.00164]
[1728676185252,0.42591887,63014.0,63013.0,0.00164]
[1728676186547,0.26722487,63014.0,63013.0,0.00164]
[1728676186801,0.42591887,63014.0,63013.0,0.00164]
[1728676187664,0.42091887,63014.0,63013.0,0.00164]
[1728676189423,0.50021887,63014.0,63013.0,0.00164]
[1728676197234,0.75207272,63014.0,63013.0,0.00164]
[1728676198274,0.74789372,63014.0,63013.0,0.00164]
[1728676198475,0.76189372,63014.0,63013.0,0.00164]
[1728676198885,0.60103987,63014.0,63013.0,0.00164]
[1728676199335,0.61503987,63014.0,63013.0,0.00164]
[1728676199714,0.61203987,63014.0,63013.0,0.00164]
[1728676200277,0.46234587,63014.0,63013.0,0.00164]
[1728676200541,0.18554587,63014.0,63013.0,0.01648939]
[1728676200738,0.18554587,63014.0,63013.0,0.00164]
[1728676201148,0.18554587,63014.0,63013.0,0.160337]
[1728676201350,0.17154587,63014.0,63013.0,0.00164]
[1728676201570,0.16154587,63014.0,63013.0,0.00164]
[1728676202013,0.16454587,63014.0,63013.0,0.160337]
[1728676204897,0.16454587,63014.0,63013.0,0.00164]
[1728676218485,0.21207862,63014.0,63013.0,0.00164]
[1728676218696,0.16454587,63014.0,63013.0,0.00164]
[1728676222436,0.23583579,63014.0,63013.0,0.00164]
[1728676223586,0.66895682,63014.0,63013.0,0.00164]
[1728676224213,0.78772571,63014.0,63013.0,0.00164]
[1728676224701,0.86325748,63014.0,63013.0,0.00164]
[1728676224909,0.70456282,63014.0,63013.0,0.00164]
[1728676225116,0.43924587,63014.0,63013.0,0.00164]
[1728676225337,0.70455978,63014.0,63013.0,0.00164]
[1728676225564,0.62735978,63014.0,63013.0,0.00164]
[1728676227135,0.43328369,63014.0,63013.0,0.00164]
[1728676227571,0.36204587,63014.0,63013.0,0.00164]
[1728676227770,0.3120039,63014.0,63013.0,0.14849385]
[1728676227968,0.3120039,63014.0,63013.0,0.30719085]
[1728676228236,0.26454587,63014.0,63013.0,0.30719085]
[1728676228612,0.26454587,63014.0,63013.0,0.14849385]
[1728676229655,0.26454587,63014.0,63013.0,0.30719085]
[1728676229865,0.26454587,63014.0,63013.0,0.14849385]
[1728676230286,0.16454587,63014.0,63013.0,0.30719085]
[1728676231566,0.16454587,63014.0,63013.0,0.14849385]
[1728676232210,0.16054587,63014.0,63013.0,0.14849385]
[1728676232423,0.15754587,63014.0,63012.0,0.158698]
[1728676232627,0.16154587,63014.0,63012.0,0.158698]
[1728676233063,0.16154587,63014.0,63011.0,0.158702]
[1728676233271,0.15854587,63014.0,63011.0,0.158702]
[1728676233487,0.15754587,63014.0,63010.0,0.30555785]
[1728676233688,0.15854587,63014.0,63010.0,0.30555785]
[1728676233860,0.15854587,63014.0,63011.0,0.158701]
[1728676234065,0.15754587,63014.0,63010.0,0.46426285]
[1728676234269,0.15754587,63014.0,63010.0,0.14685385]
[1728676234477,0.1686,63012.0,63007.0,0.00164]
[1728676234672,0.16122401,63011.0,63007.0,0.00164]
[1728676236530,0.16122401,63011.0,63007.0,0.00364]
[1728676237817,0.16122401,63011.0,63007.0,0.00464]
[1728676239058,0.15871,63008.0,63007.0,0.00464]
[1728676239278,0.48963401,63008.0,63007.0,0.00464]
[1728676239739,0.66080464,63008.0,63007.0,0.00464]
[1728676239955,0.66080464,63008.0,63007.0,0.00264]
[1728676240170,0.58963401,63008.0,63007.0,0.00264]
[1728676240370,0.59063401,63008.0,63007.0,0.00464]
[1728676240577,0.59063401,63008.0,63007.0,0.00364]
[1728676241008,0.59063401,63008.0,63007.0,0.00464]
[1728676241581,0.58963401,63008.0,63007.0,0.00164]
[1728676241785,0.59963401,63008.0,63007.0,0.00164]
[1728676241987,0.60863401,63008.0,63007.0,0.00164]
[1728676242418,0.65601019,63008.0,63007.0,0.00164]
[1728676242624,0.8173799,63008.0,63007.0,0.00164]
[1728676242839,0.65601019,63008.0,63007.0,0.00164]
[1728676244537,0.7774934,63008.0,63007.0,0.00164]
[1728676244991,0.87220087,63008.0,63007.0,0.00164]
[1728676245197,0.7774934,63008.0,63007.0,0.00164]
[1728676245597,0.67963675,63008.0,63007.0,0.00164]
[1728676247291,0.60863401,63008.0,63007.0,0.00164]
[1728676249194,0.67957237,63008.0,63007.0,0.00164]
[1728676249619,0.89538439,63008.0,63007.0,0.00164]
[1728676249826,0.87171934,63008.0,63007.0,0.00164]
[1728676250067,0.71785871,63008.0,63007.0,0.00164]
[1728676251858,0.67957365,63008.0,63007.0,0.00164]
[1728676253346,0.60863401,63008.0,63007.0,0.00164]
[1728676257208,0.65589229,63008.0,63007.0,0.00164]
[1728676258302,0.60863401,63008.0,63007.0,0.00164]
[1728676258506,0.70778579,63008.0,63007.0,0.00164]
[1728676258722,0.75504216,63008.0,63007.0,0.00164]
[1728676259202,0.75504216,63008.0,63007.0,0.0067854]
[1728676260539,0.70778579,63008.0,63007.0,0.0067854]
[1728676261799,0.37192401,63008.0,63007.0,0.0067854]
[1728676262009,0.28022401,63008.0,63007.0,0.0067854]
[1728676263063,0.27022401,63008.0,63007.0,0.0067854]
[1728676263273,0.26822401,63008.0,63007.0,0.0067854]
[1728676263697,0.27222401,63008.0,63007.0,0.0067854]
[1728676263916,0.26522401,63008.0,63007.0,0.0067854]
[1728676264149,0.27122401,63008.0,63007.0,0.0067854]
[1728676274955,0.42993401,63008.0,63007.0,0.0067854]
[1728676275164,0.44462401,63008.0,63007.0,0.0067854]
[1728676276191,0.60333401,63008.0,63007.0,0.0067854]
[1728676276985,0.44462401,63008.0,63007.0,0.0067854]
[1728676277213,0.60333401,63008.0,63007.0,0.0067854]
[1728676277418,0.29401901,63008.0,63007.0,0.0067854]
[1728676277623,0.45272901,63008.0,63007.0,0.0067854]
[1728676280399,0.29401901,63008.0,63007.0,0.0067854]
[1728676280850,0.45272901,63008.0,63007.0,0.0067854]
[1728676281080,0.29401901,63008.0,63007.0,0.0067854]
[1728676281301,0.21681901,63008.0,63007.0,0.0067854]
[1728676283314,0.37552901,63008.0,63007.0,0.0067854]
[1728676283526,0.21681901,63008.0,63007.0,0.0067854]
[1728676285878,0.37552901,63008.0,63007.0,0.0067854]
[1728676286086,0.21681901,63008.0,63007.0,0.0067854]
[1728676287788,0.26405733,63008.0,63007.0,0.0067854]
[1728676288005,0.37552901,63008.0,63007.0,0.0067854]
[1728676288489,0.21681901,63008.0,63007.0,0.0067854]
[1728676289368,0.21764001,63008.0,63007.0,0.0067854]
[1728676290234,0.21764001,63008.0,63007.0,0.10593718]
[1728676290684,0.21764001,63008.0,63007.0,0.0067854]
[1728676291755,0.11764001,63008.0,63007.0,0.0067854]
[1728676296184,0.1647832,63008.0,63007.0,0.0067854]
[1728676296630,0.11764001,63008.0,63007.0,0.0067854]
[1728676297552,0.1647832,63008.0,63007.0,0.0067854]
[1728676299008,0.11764001,63008.0,63007.0,0.0067854]
[1728676299217,0.16481407,63008.0,63007.0,0.0067854]
[1728676300472,0.32352407,63008.0,63007.0,0.0067854]
[1728676300686,0.35545001,63008.0,63007.0,0.0067854]
[1728676300893,0.4261648,63008.0,63007.0,0.0067854]
[1728676301792,0.35511605,63008.0,63007.0,0.0067854]
[1728676302001,0.42583084,63008.0,63007.0,0.0067854]
[1728676303990,0.35511605,63008.0,63007.0,0.0067854]
[1728676304202,0.19640605,63008.0,63007.0,0.0067854]
[1728676304409,0.35511605,63008.0,63007.0,0.0067854]
[1728676307312,0.52381685,63008.0,63007.0,0.0067854]
[1728676307522,0.35511605,63008.0,63007.0,0.0067854]
[1728676309078,0.61806245,63008.0,63007.0,0.0067854]
[1728676309567,0.52377606,63008.0,63007.0,0.0067854]
[1728676311666,0.61806245,63008.0,63007.0,0.0067854]
[1728676311911,0.52377606,63008.0,63007.0,0.0067854]
[1728676312512,0.61806245,63008.0,63007.0,0.0067854]
[1728676312757,0.74163405,63008.0,63007.0,0.0067854]
[1728676312965,0.62377606,63008.0,63007.0,0.0067854]
[1728676314039,0.62310573,63008.0,63007.0,0.0067854]
[1728676321217,0.72225751,63008.0,63007.0,0.0067854]
[1728676322143,0.72205845,63008.0,63007.0,0.0067854]
[1728676323724,0.95870003,63008.0,63007.0,0.0067854]
[1728676323945,0.96767279,63008.0,63007.0,0.0067854]
[1728676324173,0.74167339,63008.0,63007.0,0.0067854]
[1728676324826,0.73167339,63008.0,63007.0,0.0067854]
[1728676325036,0.74567339,63008.0,63007.0,0.0067854]
[1728676325249,0.75967339,63008.0,63007.0,0.0067854]
[1728676325915,0.75767339,63008.0,63007.0,0.0067854]
[1728676327042,0.78460256,63008.0,63007.0,0.0067854]
[1728676327699,0.80641194,63008.0,63007.0,0.0067854]
[1728676327907,0.78460256,63008.0,63007.0,0.0067854]
[1728676329059,0.78660256,63008.0,63007.0,0.0067854]
[1728676330391,0.90330306,63008.0,63007.0,0.0067854]
[1728676331073,0.76175071,63008.0,63007.0,0.0067854]
[1728676331263,0.15875,62992.0,62991.0,0.00164]
[1728676331474,0.75952818,62992.0,62991.0,0.00164]
[1728676331693,0.68882579,62992.0,62991.0,0.00164]
[1728676332268,0.7594804,62992.0,62991.0,0.00164]
[1728676332880,0.69682579,62992.0,62991.0,0.00164]
[1728676333113,0.7674804,62992.0,62991.0,0.00164]
[1728676333311,0.74390132,62992.0,62991.0,0.00164]
[1728676333512,0.74289854,62992.0,62991.0,0.00164]
[1728676333768,0.70482579,62992.0,62991.0,0.00164]
[1728676333973,0.75188953,62992.0,62991.0,0.00164]
[1728676334187,0.75688953,62992.0,62991.0,0.00164]
[1728676334609,0.77088953,62992.0,62991.0,0.00164]
[1728676335359,0.72382579,62992.0,62991.0,0.00164]
[1728676335597,0.77087521,62992.0,62991.0,0.00164]
[1728676335854,0.75687521,62992.0,62991.0,0.00164]
[1728676336351,0.77087521,62992.0,62991.0,0.00164]
[1728676336584,0.74987521,62992.0,62991.0,0.00164]
[1728676336827,0.70282579,62992.0,62991.0,0.00164]
[1728676337578,0.7638683,62992.0,62991.0,0.00164]
[1728676338295,0.7638683,62992.0,62991.0,0.00144]
[1728676339797,0.93023801,62992.0,62991.0,0.00144]
[1728676340029,0.8831955,62992.0,62991.0,0.00144]
[1728676340474,0.62267401,62992.0,62991.0,0.00144]
[1728676340698,0.54097401,62992.0,62991.0,0.00144]
[1728676343344,0.54097401,62992.0,62991.0,0.00304]
[1728676347131,0.58797697,62992.0,62991.0,0.00304]
[1728676348222,0.54097401,62992.0,62991.0,0.00304]
[1728676348431,0.58797349,62992.0,62991.0,0.00304]
[1728676350179,0.58798027,62992.0,62991.0,0.00304]
[1728676351736,0.54097401,62992.0,62991.0,0.00304]
[1728676351939,0.58798027,62992.0,62991.0,0.00304]
[1728676353317,0.18922401,62992.0,62991.0,0.10219178]
[1728676353523,0.18922401,62992.0,62991.0,0.13634496]
[1728676353659,0.18922401,62992.0,62991.0,0.29509696]
[1728676353884,0.16122401,62992.0,62991.0,0.13634496]
[1728676354285,0.17522401,62992.0,62991.0,0.26094378]
[1728676354541,0.17522401,62992.0,62991.0,0.10219178]
[1728676354989,0.27522401,62992.0,62991.0,0.10219178]
[1728676355446,0.28822401,62992.0,62991.0,0.10219178]
[1728676355957,0.28822401,62992.0,62991.0,0.26094378]
[1728676356198,0.27422401,62992.0,62991.0,0.10219178]
[1728676356460,0.27622401,62992.0,62991.0,0.10219178]
[1728676360880,0.27622401,62992.0,62991.0,0.00304]
[1728676361099,0.37512401,62992.0,62991.0,0.00304]
[1728676361809,0.27622401,62992.0,62991.0,0.00304]
[1728676368661,0.015,62992.0,62991.0,0.48101245]
[1728676369509,0.013,62992.0,62991.0,0.48101245]
[1728676369710,0.013821,62992.0,62991.0,0.48101245]
[1728676369916,0.002821,62992.0,62991.0,0.48101245]
[1728676370637,0.002821,62992.0,62991.0,0.42985544]
[1728676371249,0.002821,62992.0,62991.0,0.43564245]
[1728676371250,0.000821,62992.0,62991.0,0.43564245]
[1728676371468,0.001821,62992.0,62991.0,0.43564245]
[1728676371681,0.002821,62992.0,62991.0,0.43564245]
[1728676371892,0.003821,62992.0,62991.0,0.43564245]
[1728676374192,0.003821,62992.0,62991.0,0.39302556]
[1728676375940,0.00362948,62992.0,62991.0,0.39302556]
[1728676381600,0.00362948,62992.0,62991.0,0.39502556]
[1728676381803,0.00362948,62992.0,62991.0,0.39302556]
[1728676383127,0.00362948,62992.0,62991.0,0.24587901]
[1728676383560,0.00362948,62992.0,62991.0,0.3962]
[1728676383787,0.00362948,62992.0,62991.0,0.39302556]
[1728676385368,0.00362948,62992.0,62991.0,0.30893855]
[1728676385584,0.00362948,62992.0,62991.0,0.00304]
[1728676386857,0.00362948,62992.0,62991.0,0.30893855]
[1728676393459,0.00362948,62992.0,62991.0,0.15018655]
[1728676393664,0.00362948,62992.0,62991.0,0.00304]
[1728676394294,0.34635349,62992.0,62991.0,0.00304]
[1728676397432,0.26395349,62992.0,62991.0,0.34132325]
[1728676397898,0.26395349,62992.0,62991.0,0.18257125]
[1728676398104,0.26395349,62992.0,62991.0,0.15018655]
[1728676398802,0.26395349,62992.0,62991.0,0.30893855]
[1728676399006,0.26395349,62992.0,62991.0,0.15018655]
[1728676399211,0.00362948,62992.0,62991.0,0.30893855]
[1728676399426,0.00362948,62992.0,62991.0,0.31211328]
[1728676401238,0.00362948,62992.0,62991.0,0.39081328]
[1728676401454,0.00362948,62992.0,62991.0,0.38763855]
[1728676401878,0.00362948,62992.0,62991.0,0.38963855]
[1728676402103,0.23664158,63000.0,62999.0,0.160732]
[1728676402317,0.23664158,63000.0,62999.0,0.38975279]
[1728676402543,0.000821,63014.0,63003.0,0.002]
[1728676402721,0.0496511,63012.0,63006.0,0.30586155]
[1728676402964,0.0496511,63012.0,63006.0,0.30903553]
[1728676403191,0.000821,63007.0,63006.0,0.31103553]
[1728676403634,0.000821,63007.0,63006.0,0.30903553]
[1728676404351,0.001821,63007.0,63006.0,0.30903553]
[1728676404589,0.000821,63007.0,63006.0,0.31103553]
[1728676404893,0.001821,63007.0,63006.0,0.31103553]
[1728676405567,0.001821,63007.0,63006.0,0.31503553]
[1728676408028,0.001821,63007.0,63006.0,0.30986155]
[1728676409599,0.001821,63007.0,63006.0,0.162715]
[1728676410264,0.001821,63007.0,63006.0,0.165889]
[1728676410477,0.001821,63007.0,63006.0,0.162715]
[1728676415378,0.001821,63007.0,63006.0,0.164315]
[1728676417092,0.001821,63007.0,63006.0,0.16748898]
[1728676417299,0.001821,63007.0,63006.0,0.164315]
[1728676420804,0.001821,63007.0,63006.0,0.167489]
[1728676422781,0.001821,63007.0,63006.0,0.169489]
[1728676423629,0.001821,63007.0,63006.0,0.167489]
[1728676425568,0.15868,63009.0,63008.0,0.16571]
[1728676425782,0.000821,63014.0,63012.0,0.165699]
[1728676425993,0.000821,63014.0,63012.0,0.31284555]
[1728676426201,0.000821,63014.0,63012.0,0.31601887]
[1728676426638,0.000821,63014.0,63012.0,0.64738943]
[1728676426877,0.000821,63014.0,63013.0,0.188697]
[1728676427086,0.000821,63014.0,63013.0,0.35309418]
[1728676427312,0.000821,63014.0,63013.0,0.34992101]
[1728676428214,0.000821,63014.0,63013.0,0.35292101]
[1728676428635,0.000821,63014.0,63013.0,0.34992101]
[1728676429066,0.001821,63014.0,63013.0,0.36492101]
[1728676429276,0.001821,63014.0,63013.0,0.35992101]
[1728676429695,0.001821,63014.0,63013.0,0.37392101]
[1728676431426,0.001821,63014.0,63013.0,0.59806756]
[1728676431689,0.23664158,63022.0,63019.0,0.4829751]
[1728676431907,0.23664158,63022.0,63019.0,0.72119911]
[1728676432344,0.0495451,63026.0,63019.0,0.72119911]
[1728676432987,0.0495451,63026.0,63019.0,0.57205256]
[1728676433215,0.0495451,63026.0,63019.0,0.32282855]
[1728676433445,0.0981,63021.0,63019.0,0.31782855]
[1728676433921,0.019573,63020.0,63019.0,0.32882855]
[1728676435398,0.019573,63020.0,63019.0,0.33042855]
[1728676438497,0.020394,63020.0,63019.0,0.33042855]
[1728676441855,0.101994,63020.0,63019.0,0.33042855]
[1728676442088,0.199194,63020.0,63019.0,0.33042855]
[1728676446567,0.199194,63020.0,63019.0,0.30914855]
[1728676450011,0.199194,63020.0,63019.0,0.0246]
[1728676450428,0.199194,63020.0,63019.0,0.183282]
[1728676461867,0.199194,63020.0,63019.0,0.184924]
[1728676468613,0.199194,63020.0,63019.0,0.2839877]
[1728676469520,0.199194,63020.0,63019.0,0.026242]
[1728676469740,0.199194,63020.0,63019.0,0.184924]
[1728676469977,0.199194,63020.0,63019.0,0.2839877]
[1728676479338,0.36041801,63020.0,63019.0,0.026242]
[1728676479587,0.61816071,63020.0,63019.0,0.026242]
[1728676480098,0.61816071,63020.0,63015.0,0.001642]
[1728676480099,0.158689,63016.0,63015.0,0.001642]
[1728676480316,0.61157133,63016.0,63015.0,0.001642]
[1728676480536,0.45381863,63016.0,63015.0,0.001642]
[1728676481404,0.35381863,63016.0,63015.0,0.04361707]
[1728676481623,0.35381863,63016.0,63015.0,0.30137277]
[1728676481624,0.11109462,63016.0,63015.0,0.30137277]
[1728676481837,0.02669462,63016.0,63015.0,0.30137277]
[1728676482054,0.01,63016.0,63015.0,0.40043647]
[1728676482280,0.01,63016.0,63015.0,0.40543647]
[1728676482500,0.004,63016.0,63015.0,0.40843647]
[1728676482718,0.019394,63020.0,63016.0,0.005]
[1728676482961,0.019394,63020.0,63019.0,0.30570937]
[1728676484537,0.019394,63020.0,63019.0,0.158682]
[1728676484742,0.113294,63020.0,63019.0,0.31670937]
[1728676485159,0.114294,63020.0,63019.0,0.31670937]
[1728676486447,0.114294,63020.0,63019.0,0.31835137]
[1728676488504,0.114294,63020.0,63019.0,0.32175137]
[1728676498682,0.114294,63020.0,63019.0,0.174724]
[1728676499728,0.114294,63020.0,63019.0,0.016042]
[1728676500403,0.82503992,63020.0,63019.0,0.016042]
[1728676500634,0.82503992,63020.0,63015.0,0.001642]
[1728676500635,0.258689,63016.0,63015.0,0.001642]
[1728676500859,0.258689,63016.0,63013.0,0.001642]
[1728676500860,0.160694,63014.0,63013.0,0.001642]
[1728676501077,0.66667371,63014.0,63013.0,0.001642]
[1728676501330,0.1746,62999.0,62988.0,0.23664158]
[1728676501578,0.14702737,62997.0,62988.0,0.23664158]
[1728676501794,0.1746,62999.0,62988.0,0.23664158]
[1728676501795,0.16122401,62996.0,62990.0,0.158754]
[1728676502238,0.16122401,62996.0,62987.0,0.160403]
[1728676502462,0.16122401,62996.0,62990.0,0.158754]
[1728676503365,0.16122401,62996.0,62988.0,0.158758]
[1728676503629,0.16122401,62996.0,62987.0,0.001642]
[1728676503895,0.16122401,62996.0,62990.0,0.158754]
[1728676504348,0.16222401,62996.0,62990.0,0.158754]
[1728676504577,0.16222401,62996.0,62991.0,0.160192]
[1728676504995,0.16222401,62996.0,62992.0,0.160391]
[1728676505421,0.16222401,62996.0,62992.0,0.001642]
[1728676506452,0.0828,62995.0,62992.0,0.001642]
[1728676506703,0.16122401,62994.0,62992.0,0.001642]
[1728676507864,0.16122401,62994.0,62992.0,0.0179901]
[1728676508082,0.16122401,62994.0,62992.0,0.001642]
[1728676508505,0.16122401,62994.0,62992.0,0.160392]
[1728676508721,0.16122401,62994.0,62992.0,0.001642]
[1728676510658,0.16122401,62994.0,62992.0,0.160391]
[1728676510871,0.16122401,62994.0,62993.0,0.158747]
[1728676511095,0.16122401,62994.0,62992.0,0.001642]
[1728676512590,0.85991499,62993.0,62992.0,0.001642]
[1728676512807,0.62327341,62993.0,62992.0,0.001642]
[1728676513026,0.62527341,62993.0,62992.0,0.001642]
[1728676513243,0.62327341,62993.0,62992.0,0.001642]
[1728676513480,0.77030078,62993.0,62992.0,0.001642]
[1728676513683,0.77230078,62993.0,62992.0,0.001642]
[1728676513894,0.78830078,62993.0,62992.0,0.001642]
[1728676514541,0.76389838,62993.0,62992.0,0.001642]
[1728676514756,0.45812401,62993.0,62992.0,0.001642]
[1728676515398,0.45812401,62993.0,62992.0,0.00042929]
[1728676517344,0.27602401,62993.0,62992.0,0.30620666]
[1728676517765,0.27602401,62993.0,62992.0,0.15917929]
[1728676518187,0.17022401,62993.0,62992.0,0.15917929]
[1728676518688,0.17922401,62993.0,62992.0,0.15917929]
[1728676518915,0.17922401,62993.0,62992.0,0.00042929]
[1728676519359,0.17022401,62993.0,62992.0,0.00042929]
[1728676519626,0.17022401,62993.0,62992.0,0.15917929]
[1728676519841,0.17022401,62993.0,62992.0,0.00042929]
[1728676520052,0.16122401,62993.0,62992.0,0.00042929]
[1728676520272,0.16122401,62993.0,62992.0,0.15917929]
[1728676520726,0.16222401,62993.0,62992.0,0.15917929]
[1728676520953,0.16304501,62993.0,62992.0,0.15917929]
[1728676522047,0.001821,62993.0,62992.0,0.30620666]
[1728676522286,0.001821,62993.0,62992.0,0.30938131]
[1728676522968,0.000821,62993.0,62992.0,0.30938131]
[1728676523203,0.000821,62993.0,62992.0,0.31038131]
[1728676523458,0.000821,62993.0,62992.0,0.31138131]
[1728676523951,0.000821,62993.0,62992.0,0.30720666]
[1728676524187,0.001821,62993.0,62992.0,0.30820666]
[1728676524448,0.001821,62993.0,62992.0,0.30720666]
[1728676525875,0.002821,62993.0,62992.0,0.30820666]
[1728676528460,0.002821,62993.0,62992.0,0.31138114]
[1728676530413,0.002821,62993.0,62992.0,0.31138115]
[1728676530641,0.002821,62993.0,62992.0,0.41528115]
[1728676530876,0.002821,62993.0,62992.0,0.41210666]
[1728676531883,0.002821,62993.0,62992.0,0.31320666]
[1728676534355,0.002821,62993.0,62992.0,0.31638102]
[1728676535221,0.002821,62993.0,62992.0,0.31320666]
[1728676535656,0.002821,62993.0,62992.0,0.31638103]
[1728676536280,0.002821,62993.0,62992.0,0.31320666]
[1728676536482,0.002821,62993.0,62992.0,0.31638103]
[1728676536692,0.002821,62993.0,62992.0,0.31320666]
[1728676538783,0.001821,62993.0,62992.0,0.31220666]
[1728676539458,0.002821,62993.0,62992.0,0.31320666]
[1728676541280,0.002821,62993.0,62992.0,0.31638103]
[1728676541510,0.002821,62993.0,62992.0,0.31320666]
[1728676541755,0.002821,62993.0,62992.0,0.31638103]
[1728676541981,0.002821,62993.0,62992.0,0.31320666]
[1728676543116,0.002821,62993.0,62992.0,0.31638103]
[1728676543328,0.002821,62993.0,62992.0,0.31520666]
[1728676544720,0.002821,62993.0,62992.0,0.31320666]
[1728676545853,0.002821,62993.0,62992.0,0.31520666]
[1728676546322,0.23664158,63004.0,63003.0,0.158722]
[1728676546796,0.0766,63013.0,63010.0,0.158704]
[1728676547263,0.0766,63013.0,63012.0,0.158699]
[1728676547711,0.0985,63015.0,63014.0,0.158694]
[1728676547923,0.0766,63017.0,63016.0,0.158689]
[1728676548131,0.069394,63020.0,63019.0,0.158682]
[1728676548379,0.069394,63020.0,63019.0,0.30570937]
[1728676549574,0.019394,63020.0,63019.0,0.30570937]
[1728676550579,0.024394,63020.0,63019.0,0.30570937]
[1728676550785,0.029394,63020.0,63019.0,0.30570937]
[1728676550987,0.024394,63020.0,63019.0,0.30570937]
[1728676551414,0.025394,63020.0,63019.0,0.46573674]
[1728676551621,0.025394,63020.0,63019.0,0.31870937]
[1728676551836,0.025394,63020.0,63019.0,0.31270937]
[1728676552049,0.025394,63020.0,63019.0,0.31588255]
[1728676552258,0.019394,63020.0,63019.0,0.30888255]
[1728676552686,0.020394,63020.0,63019.0,0.31470937]
[1728676552895,0.020394,63020.0,63019.0,0.32688254]
[1728676553108,0.020394,63020.0,63019.0,0.32370937]
[1728676553311,0.020394,63020.0,63019.0,0.32570937]
[1728676554563,0.020394,63020.0,63019.0,0.32370937]
[1728676555391,0.020394,63020.0,63019.0,0.32530937]
[1728676556863,0.020394,63020.0,63019.0,0.47233674]
[1728676557070,0.020394,63020.0,63019.0,0.47733674]
[1728676557276,0.020394,63020.0,63019.0,0.33030937]
[1728676562144,0.020394,63020.0,63019.0,0.32530937]
[1728676562361,0.101394,63020.0,63019.0,0.32530937]
[1728676563439,0.10120244,63020.0,63019.0,0.32530937]
[1728676565113,0.20100244,63020.0,63019.0,0.32530937]
[1728676565351,0.20100244,63020.0,63019.0,0.0196]
[1728676565572,0.20100244,63020.0,63019.0,0.178282]
[1728676566236,0.20100244,63020.0,63019.0,0.0196]
[1728676566450,0.20100244,63020.0,63019.0,0.178282]
[1728676574501,0.20100244,63020.0,63019.0,0.0196]
[1728676574660,0.20100244,63020.0,63019.0,0.178282]
[1728676575109,0.20100244,63020.0,63019.0,0.0196]
[1728676575529,0.20100244,63020.0,63019.0,0.178282]
[1728676576511,0.02020244,63020.0,63019.0,0.47233674]
[1728676576672,0.02020244,63020.0,63019.0,0.74316075]
[1728676577312,0.01383637,63025.0,63019.0,0.58447875]
[1728676577526,0.01383637,63025.0,63023.0,0.48272674]
[1728676577709,0.01383637,63025.0,63023.0,0.64395075]
[1728676578573,0.001821,63024.0,63023.0,0.64195075]
[1728676578718,0.001821,63024.0,63023.0,0.64395075]
[1728676578942,0.000821,63024.0,63023.0,0.64395075]
[1728676579759,0.000821,63024.0,63023.0,0.65795075]
[1728676580073,0.001821,63024.0,63023.0,0.67195075]
[1728676580714,0.002821,63024.0,63023.0,0.68195075]
[1728676581122,0.002821,63024.0,63023.0,0.66795075]
[1728676581719,0.002821,63024.0,63023.0,0.67595075]
[1728676582699,0.002821,63024.0,63023.0,0.67395075]
[1728676583169,0.002821,63024.0,63023.0,0.36569937]
[1728676583377,0.002821,63024.0,63023.0,0.190672]
[1728676584215,0.002821,63024.0,63023.0,0.182672]
[1728676584424,0.002821,63024.0,63023.0,0.168672]
[1728676584629,0.000821,63024.0,63023.0,0.170672]
[1728676584835,0.001821,63024.0,63023.0,0.184672]
[1728676588104,0.001821,63024.0,63023.0,0.38124132]
[1728676588108,0.03042906,63030.0,63029.0,0.163657]
[1728676588347,0.03042906,63030.0,63029.0,0.31385706]
[1728676588587,0.03042906,63030.0,63029.0,0.31585706]
[1728676590010,0.03042906,63030.0,63029.0,0.32068437]
[1728676590011,0.03142906,63030.0,63029.0,0.32068437]
[1728676590257,0.03142906,63030.0,63029.0,0.32668437]
[1728676592174,0.03142906,63030.0,63029.0,0.32468437]
[1728676593777,0.03142906,63030.0,63029.0,0.33039345]
[1728676594444,0.03142906,63030.0,63029.0,0.33239345]
[1728676594890,0.03142906,63030.0,63029.0,0.51661746]
[1728676595105,0.0365724,63035.0,63034.0,0.48269874]
[1728676595329,0.0499595,63042.0,63039.0,0.005]
[1728676595543,0.0499595,63042.0,63041.0,0.45968074]
[1728676595797,0.23664158,63044.0,63043.0,0.005]
[1728676596010,0.23664158,63044.0,63043.0,0.163621]
[1728676596232,0.41744158,63051.0,63044.0,0.163619]
[1728676596441,0.41744158,63051.0,63044.0,0.31064637]
[1728676596658,0.41744158,63051.0,63044.0,0.31381829]
[1728676597321,0.41744158,63051.0,63044.0,0.31064637]
[1728676597542,0.41744158,63051.0,63044.0,0.3194183]